bitfinex-derivatives/quotes_ETHF0:USTF0_20250422
["timestamp","ask_amount","ask_price","bid_price","bid_amount"]
[1745294763434,1.27185396,1584.3,1584.2,7.31634]
[1745294763633,0.00949396,1584.3,1584.2,7.31634]
[1745294764236,0.00949396,1584.3,1584.2,13.63834]
[1745294764630,1.2622,1584.5,1584.4,1.26225]
[1745294764830,1.8374,1584.6,1584.4,1.26225]
[1745294765138,3.09952,1584.6,1584.5,1.8371]
[1745294766127,1.26228,1584.4,1584.3,3.26489]
[1745294766329,1.26228,1584.4,1584.3,5.10199]
[1745294766622,1.26228,1584.4,1584.3,9.36899]
[1745294766823,1.26228,1584.4,1584.3,5.10199]
[1745294767029,3.09966,1584.5,1584.4,1.26228]
[1745294767224,3.09966,1584.5,1584.4,2.96898]
[1745294767537,3.09966,1584.5,1584.4,1.7067]
[1745294768740,1.26228,1584.4,1584.3,6.49703]
[1745294768939,2.93578,1584.4,1584.3,8.20373]
[1745294769439,2.93578,1584.4,1584.3,2.6744]
[1745294769742,2.93578,1584.4,1584.3,5.9737]
[1745294770040,2.93578,1584.4,1584.3,7.23606]
[1745294771940,8.40282,1584.7,1584.4,1.26226]
[1745294771941,1.26227,1584.5,1584.4,1.26226]
[1745294772137,3.2078,1584.7,1584.4,3.7847]
[1745294772444,1.26215,1584.6,1584.5,1.26215]
[1745294772630,1.26215,1584.6,1584.5,3.06065]
[1745294772838,1.26215,1584.6,1584.5,1.7985]
[1745294773441,2.97055,1584.6,1584.5,1.7985]
[1745294779156,2.97055,1584.6,1584.5,3.0607]
[1745294779354,1.26215,1584.6,1584.5,3.0607]
[1745294780246,1.26215,1584.6,1584.5,9.3827]
[1745294781151,1.26215,1584.6,1584.5,3.0607]
[1745294782049,2.8023,1584.8,1584.5,1.7985]
[1745294782255,1.2621,1584.7,1584.6,3.11339]
[1745294782557,1.2621,1584.7,1584.6,1.26209]
[1745294783456,1.2621,1584.7,1584.4,12.61668]
[1745294783457,1.26215,1584.6,1584.5,1.26213]
[1745294784461,1.2622,1584.5,1584.4,6.45621]
[1745294784755,1.2622,1584.5,1584.4,10.71321]
[1745294785552,1.2621,1584.7,1584.4,9.451]
[1745294785952,1.2619,1584.9,1584.6,6.3631]
[1745294786160,3.9258,1585.1,1584.8,1.26196]
[1745294786361,1.26188,1584.9,1584.8,1.26196]
[1745294786659,7.1336,1585.1,1584.7,5.2883]
[1745294786861,1.26189,1584.9,1584.8,1.26191]
[1745294787057,3.04876,1585.0,1584.9,1.26188]
[1745294787354,1.2618,1585.0,1584.9,1.26188]
[1745294788159,1.2618,1585.0,1584.9,7.58388]
[1745294788360,10.6934,1585.0,1584.9,2.61961]
[1745294788555,22.9419,1585.0,1584.9,1.101]
[1745294788755,1.26227,1584.5,1584.3,5.51931]
[1745294789054,1.26227,1584.5,1584.4,1.26228]
[1745294790960,1.26227,1584.5,1584.3,8.72709]
[1745294791962,4.92877,1584.6,1584.4,1.26228]
[1745294792162,3.18027,1584.6,1584.5,1.2622]
[1745294792463,1.2621,1584.7,1584.5,1.2622]
[1745294792760,1.26204,1584.7,1584.6,5.2743]
[1745294792962,1.26204,1584.7,1584.6,6.2969]
[1745294793457,1.26204,1584.7,1584.6,2.0399]
[1745294793657,1.26201,1584.8,1584.7,1.26203]
[1745294793854,1.26201,1584.8,1584.7,1.26204]
[1745294794358,1.26201,1584.8,1584.7,7.58404]
[1745294794957,4.91123,1584.9,1584.8,1.26196]
[1745294795162,1.26196,1584.8,1584.7,7.58399]
[1745294795953,1.26196,1584.8,1584.7,6.322]
[1745294796159,3.05866,1584.8,1584.7,6.322]
[1745294797261,1.26204,1584.7,1584.6,4.256]
[1745294797455,3.05874,1584.7,1584.6,4.256]
[1745294797959,1.2622,1584.5,1584.4,1.0141]
[1745294798163,1.2622,1584.5,1584.4,12.85435]
[1745294799261,1.2622,1584.5,1584.4,6.53235]
[1745294800067,1.2622,1584.5,1584.4,5.2701]
[1745294800765,1.2622,1584.5,1584.4,6.53238]
[1745294801064,1.2622,1584.5,1584.4,5.2701]
[1745294801571,1.2622,1584.5,1584.4,1.0141]
[1745294801762,2.9562,1584.5,1584.4,5.2701]
[1745294801962,2.9562,1584.5,1584.4,7.0894]
[1745294804070,2.9562,1584.5,1584.4,8.35168]
[1745294804261,1.2622,1584.5,1584.4,8.35168]
[1745294804456,6.36285,1584.8,1584.5,1.26213]
[1745294804770,1.26212,1584.6,1584.5,4.03423]
[1745294804962,1.26208,1584.7,1584.6,1.26211]
[1745294805162,1.26208,1584.7,1584.6,3.07291]
[1745294805363,1.26208,1584.7,1584.6,1.8108]
[1745294806265,3.01668,1584.7,1584.6,1.8108]
[1745294806668,1.26212,1584.6,1584.5,10.579]
[1745294806858,3.00042,1584.6,1584.5,12.2539]
[1745294807357,3.00042,1584.6,1584.5,13.5161]
[1745294807973,3.00042,1584.6,1584.5,12.2539]
[1745294808670,3.00042,1584.6,1584.5,6.322]
[1745294808857,3.00042,1584.6,1584.5,7.9969]
[1745294809359,3.00042,1584.6,1584.5,1.6749]
[1745294809670,3.00042,1584.6,1584.5,2.9371]
[1745294810875,3.00042,1584.6,1584.5,1.6749]
[1745294818073,3.00042,1584.6,1584.5,2.9371]
[1745294818377,1.26212,1584.6,1584.5,2.9371]
[1745294818582,1.26212,1584.6,1584.5,3.952]
[1745294821674,6.9032,1585.0,1584.5,5.8976]
[1745294821873,1.26198,1584.8,1584.7,1.26196]
[1745294822074,1.26194,1584.9,1584.8,1.26193]
[1745294822281,1.26194,1584.9,1584.8,4.09243]
[1745294822475,16.05814631,1585.2,1584.8,6.0383]
[1745294822779,1.2618,1585.0,1584.9,3.99692]
[1745294823076,1.26177,1585.1,1585.0,1.26179]
[1745294823282,1.26177,1585.1,1585.0,1.7903]
[1745294825380,1.2618,1585.0,1584.9,5.1888]
[1745294825679,3.2766,1585.0,1584.9,1.7278]
[1745294827182,1.26177,1585.1,1584.9,2.98968]
[1745294827573,1.26172,1585.1,1585.0,3.9629]
[1745294830481,3.6983,1585.2,1585.0,2.7011]
[1745294830671,1.27438688,1585.3,1585.2,1.26164]
[1745294830871,1.27438688,1585.3,1585.2,3.01034]
[1745294831276,1.27438688,1585.3,1585.2,9.33234]
[1745294833084,1.27438688,1585.3,1585.2,3.01034]
[1745294833387,1.27438688,1585.3,1585.2,1.7487]
[1745294833588,1.27438688,1585.3,1585.1,40.8]
[1745294833589,1.26164,1585.2,1585.1,40.8]
[1745294833883,1.26172,1585.1,1585.0,6.9874]
[1745294834185,1.26172,1585.1,1585.0,47.7874]
[1745294834686,2.96852,1585.1,1585.0,49.0492]
[1745294836386,1.26172,1585.1,1585.0,49.0492]
[1745294836581,1.26172,1585.1,1585.0,49.04913]
[1745294837186,1.26172,1585.1,1585.0,55.37113]
[1745294837383,2.2652,1585.2,1585.1,1.26172]
[1745294837578,2.2652,1585.2,1585.1,2.99312]
[1745294838388,2.2652,1585.2,1585.1,1.7314]
[1745294839885,1.2617,1585.2,1585.1,1.7314]
[1745294840189,1.2617,1585.2,1585.1,2.99312]
[1745294840687,1.2617,1585.2,1585.1,1.7314]
[1745294840887,2.9647,1585.2,1585.1,1.7314]
[1745294842486,2.9647,1585.2,1585.1,2.99312]
[1745294842683,2.9647,1585.2,1585.1,1.7314]
[1745294846888,1.26172,1585.1,1585.0,41.7733]
[1745294847087,2.27676688,1585.3,1585.2,1.26164]
[1745294847294,1.26172,1585.2,1585.1,1.26169]
[1745294848181,1.26172,1585.2,1585.1,2.98749]
[1745294849287,2.76362688,1585.3,1585.1,2.98749]
[1745294849288,0.01282688,1585.3,1585.2,1.26164]
[1745294849488,0.01282688,1585.3,1585.2,4.00934]
[1745294849993,0.01282688,1585.3,1585.2,12.21714]
[1745294850195,0.01282688,1585.3,1585.2,18.53914]
[1745294851998,0.01282688,1585.3,1585.2,13.53914]
[1745294852802,3.2078,1586.0,1585.4,3.15371]
[1745294852993,1.26119,1585.8,1585.7,3.2078]
[1745294853296,1.26124,1585.7,1585.6,6.075]
[1745294853498,2.97224,1585.7,1585.6,6.07522517]
[1745294853690,2.97224,1585.7,1585.6,46.87522517]
[1745294854295,2.97224,1585.7,1585.6,6.07522517]
[1745294854596,2.97224,1585.7,1585.6,1.85322517]
[1745294855397,7.97224,1585.7,1585.6,0.00946372]
[1745294855998,3.97954,1585.7,1585.6,0.00946372]
[1745294856399,6.36037,1586.0,1585.6,0.00946372]
[1745294856585,1.26124,1585.8,1585.6,5.02274372]
[1745294856896,1.26116,1585.8,1585.7,1.7794]
[1745294857287,1.26116,1585.8,1585.7,3.04058]
[1745294857486,6.8927,1586.0,1585.7,7.26258]
[1745294857699,1.26108,1585.9,1585.8,1.7794]
[1745294858198,2.96248,1585.9,1585.8,1.7794]
[1745294858398,1.26116,1585.8,1585.7,10.544]
[1745294858588,3.06756,1585.8,1585.7,6.322]
[1745294859291,11.27536,1585.8,1585.7,5.28633994]
[1745294859698,11.38648217,1585.8,1585.7,5.28633994]
[1745294860193,11.38648217,1585.8,1585.7,0.40056225]
[1745294860194,11.38648489,1585.8,1585.7,0.40056225]
[1745294860398,1.26124,1585.7,1585.6,5.97e-06]
[1745294860595,3.15351,1585.5,1585.2,6.2849]
[1745294860898,1.26156,1585.3,1585.2,47.0849]
[1745294861099,1.26156,1585.3,1585.2,53.39766742]
[1745294861397,1.26156,1585.3,1585.2,12.59766742]
[1745294861603,1.26156,1585.3,1585.2,6.322]
[1745294862201,1.26156,1585.3,1585.2,7.3352]
[1745294862501,1.26156,1585.3,1585.2,9.0241]
[1745294863697,1.26152,1585.4,1585.2,17.2319]
[1745294863899,1.26148,1585.4,1585.3,1.6889]
[1745294864402,1.26148,1585.4,1585.3,2.7337]
[1745294864805,1.26148,1585.4,1585.3,1.6889]
[1745294867596,1.26156,1585.3,1585.2,6.322]
[1745294867797,7.38126,1585.3,1585.2,6.322]
[1745294868305,4.17346,1585.3,1585.2,6.322]
[1745294868807,7.38126,1585.3,1585.2,6.322]
[1745294870006,4.46936,1585.3,1585.2,6.322]
[1745294870304,1.26156,1585.3,1585.2,8.1168]
[1745294871197,1.26156,1585.3,1585.2,9.1696]
[1745294872607,1.26156,1585.3,1585.2,8.1168]
[1745294872804,5.50946,1585.3,1585.2,6.322]
[1745294874305,2.30166,1585.3,1585.2,6.322]
[1745294875198,5.50946,1585.3,1585.2,6.322]
[1745294876208,10.50946,1585.3,1585.2,6.322]
[1745294876404,14.85361838,1585.3,1585.2,6.322]
[1745294876710,15.35107475,1585.3,1585.2,6.322]
[1745294877401,15.52567475,1585.3,1585.2,6.322]
[1745294877603,15.02821838,1585.3,1585.2,6.322]
[1745294878109,1.26164,1585.2,1585.1,0.00946372]
[1745294878311,3.99564,1585.2,1585.1,0.00946372]
[1745294879608,8.99564,1585.2,1585.1,3.72e-06]
[1745294880107,9.10680965,1585.2,1585.1,3.72e-06]
[1745294880608,8.99564,1585.2,1585.1,3.72e-06]
[1745294881111,19.60680723,1585.2,1585.1,3.72e-06]
[1745294881407,19.49564,1585.2,1585.1,3.72e-06]
[1745294881711,19.60680633,1585.2,1585.1,3.72e-06]
[1745294882010,14.60680633,1585.2,1585.1,3.72e-06]
[1745294882407,1.26172,1585.1,1585.0,2.25295372]
[1745294882604,1.26172,1585.1,1585.0,0.27593372]
[1745294882605,6.46398646,1585.1,1585.0,0.27593372]
[1745294884010,6.46399582,1585.1,1585.0,0.27593372]
[1745294884311,1.2618,1585.0,1584.9,6.33146372]
[1745294884503,8.4245,1585.0,1584.9,6.33146372]
[1745294885205,11.6323,1585.0,1584.9,6.33146372]
[1745294885810,4.4696,1585.0,1584.9,6.33146372]
[1745294891907,4.6442,1585.0,1584.9,6.33146372]
[1745294893511,4.6442,1585.0,1584.9,3.52669372]
[1745294893809,6.55658099,1585.0,1584.9,3.52669372]
[1745294894114,6.4454,1585.0,1584.9,3.52669372]
[1745294894509,16.9154,1585.0,1584.9,1.90095372]
[1745294894713,17.50904058,1585.0,1584.9,3.72e-06]
[1745294895115,1.26188,1584.9,1584.8,0.00946372]
[1745294895303,13.62492,1584.8,1584.1,4.234]
[1745294895508,1.26236,1584.3,1584.2,2.1728]
[1745294896314,1.26236,1584.3,1584.2,8.4948]
[1745294896806,4.47016,1584.3,1584.2,8.4948]
[1745294897805,4.47016,1584.3,1584.2,6.322]
[1745294898012,5.62896,1584.3,1584.2,4.77639]
[1745294899208,9.86296,1584.3,1584.2,4.77639]
[1745294900719,10.03756,1584.3,1584.2,4.77639]
[1745294903121,15.03756,1584.3,1584.2,2.81]
[1745294903425,1.26291,1583.6,1583.5,4.235]
[1745294903619,1.26305,1583.5,1583.4,1.1532]
[1745294904125,1.26305,1583.5,1583.4,12.4752]
[1745294904810,1.26305,1583.5,1583.4,15.2297]
[1745294906414,1.26305,1583.5,1583.4,10.2297]
[1745294906819,1.26305,1583.5,1583.4,11.49277]
[1745294907020,6.36483,1583.8,1583.4,11.49277]
[1745294907320,1.26291,1583.6,1583.5,1.6833]
[1745294908215,3.2078,1583.8,1583.5,16.2131]
[1745294908419,4.47061,1583.8,1583.6,1.26287]
[1745294908616,4.47061,1583.8,1583.7,1.141]
[1745294908817,4.47061,1583.8,1583.7,2.2005]
[1745294909017,4.47061,1583.8,1583.7,9.0236]
[1745294909218,4.47061,1583.8,1583.7,10.3456]
[1745294910126,3.15652,1584.0,1583.7,15.3456]
[1745294910127,1.26274,1583.9,1583.7,15.3456]
[1745294910322,10.4674,1584.2,1583.8,3.08582]
[1745294910323,13.5006,1584.2,1583.8,3.08582]
[1745294910513,13.5006,1584.2,1583.9,1.26262]
[1745294910514,6.36391,1584.2,1583.9,1.26262]
[1745294910713,1.2625,1584.2,1584.0,2.2546]
[1745294910912,1.2625,1584.2,1584.0,3.51712]
[1745294911117,1.26241,1584.3,1584.1,4.47026]
[1745294911322,1.26241,1584.3,1584.1,45.27026]
[1745294911522,1.26241,1584.3,1584.1,50.27026]
[1745294911717,1.26236,1584.3,1584.1,50.27026]
[1745294912023,1.26244,1584.2,1584.1,49.0078]
[1745294912217,0.00946372,1584.4,1584.3,1.26236]
[1745294912423,0.00946372,1584.4,1584.3,8.70116]
[1745294912624,0.00946372,1584.4,1584.3,13.70116]
[1745294912924,1.27174372,1584.4,1584.3,4.231]
[1745294913319,1.27180372,1584.4,1584.3,4.231]
[1745294913514,1.27180372,1584.4,1584.3,5.49336]
[1745294914125,0.00946372,1584.4,1584.3,5.49336]
[1745294914524,1.27174372,1584.4,1584.3,5.49336]
[1745294915428,1.27174372,1584.4,1584.3,6.63216]
[1745294915821,0.00946372,1584.4,1584.3,5.3698]
[1745294916031,1.27174372,1584.4,1584.3,1.1388]
[1745294917619,3.05924372,1584.4,1584.3,1.1388]
[1745294918925,1.26236,1584.3,1584.2,6.33146372]
[1745294919135,3.04986,1584.3,1584.2,6.33146372]
[1745294919320,6.25766,1584.3,1584.2,6.33146372]
[1745294919516,8.40646,1584.3,1584.2,6.33146372]
[1745294919720,13.58106,1584.3,1584.2,6.33146372]
[1745294920622,13.69229363,1584.3,1584.2,6.33146372]
[1745294921331,1.54819363,1584.3,1584.2,6.33146372]
[1745294921523,3.21286,1584.3,1584.2,6.33146372]
[1745294921829,6.42066,1584.3,1584.2,6.33146372]
[1745294922026,10.65166,1584.3,1584.2,6.33146372]
[1745294922225,15.65166,1584.3,1584.2,6.33146372]
[1745294922732,10.65166,1584.3,1584.2,6.33146372]
[1745294924929,6.42066,1584.3,1584.2,6.33146372]
[1745294925233,1.26236,1584.3,1584.2,8.09876372]
[1745294927835,1.70136372,1584.4,1584.2,8.09876372]
[1745294928025,0.00946372,1584.4,1584.3,3.04996]
[1745294929126,0.00946372,1584.4,1584.3,6.7876]
[1745294929331,0.00946372,1584.4,1584.3,8.04996]
[1745294930229,0.00946372,1584.4,1584.3,11.25776]
[1745294937438,0.00946372,1584.4,1584.3,6.25776]
[1745294937944,3.47027,1585.0,1584.7,1.26198]
[1745294938143,2.98873,1584.9,1584.7,6.322]
[1745294938442,2.98876,1584.8,1584.7,6.322]
[1745294939839,7.98876,1584.8,1584.7,6.322]
[1745294942535,2.98876,1584.8,1584.7,6.322]
[1745294944447,1.7268,1584.8,1584.7,7.58404]
[1745294944942,2.98876,1584.8,1584.7,7.58404]
[1745294946244,1.7268,1584.8,1584.7,7.58404]
[1745294946642,2.98876,1584.8,1584.7,6.322]
[1745294946842,2.98876,1584.8,1584.7,7.58404]
[1745294947345,1.7268,1584.8,1584.7,7.58404]
[1745294947944,1.7268,1584.8,1584.7,6.322]
[1745294948645,1.7268,1584.8,1584.7,10.3241]
[1745294949846,2.98876,1584.8,1584.7,10.3241]
[1745294950044,0.00946372,1584.9,1584.8,1.26196]
[1745294950239,0.00946372,1584.9,1584.8,2.96996]
[1745294951544,1.26164,1585.2,1585.1,1.26165]
[1745294951850,4.46941,1585.3,1585.1,1.26165]
[1745294952047,4.46941,1585.3,1585.2,1.708]
[1745294952248,2.8887,1585.4,1585.3,1.26156]
[1745294952448,2.8887,1585.4,1585.2,2.96959]
[1745294952647,1.26156,1585.3,1585.2,2.97905372]
[1745294953160,2.8887,1585.4,1585.2,8.03946372]
[1745294953161,3.03963,1585.4,1585.2,8.03946372]
[1745294953449,0.00946372,1585.5,1585.3,1.801]
[1745294953755,0.00946372,1585.5,1585.4,5.52348]
[1745294953937,0.00946372,1585.5,1585.4,6.63008]
[1745294954141,0.00946372,1585.5,1585.4,14.75308]
[1745294955152,20.14554631,1586.1,1585.8,1.26116]
[1745294955339,1.26114,1585.9,1585.7,5.52321]
[1745294955543,16.94320776,1586.1,1585.7,5.52321]
[1745294955544,1.26116,1585.8,1585.7,5.52321]
[1745294955747,1.26115,1585.9,1585.7,48.12421]
[1745294955945,3.07105,1586.0,1585.7,46.863]
[1745294956146,3.07105,1586.0,1585.8,1.8505]
[1745294956350,1.81946372,1586.0,1585.8,1.8505]
[1745294956548,0.00946372,1586.0,1585.9,1.26108]
[1745294956747,0.00946372,1586.0,1585.9,4.23398]
[1745294957155,6.17522,1586.3,1585.9,9.2949]
[1745294957339,4.9144,1586.3,1586.0,6.1115]
[1745294957546,1.7066,1586.3,1586.2,1.26084]
[1745294958154,1.7066,1586.3,1586.2,7.58284]
[1745294958849,1.0929629,1586.4,1586.3,1.26077]
[1745294959054,1.0929629,1586.4,1586.3,3.11127]
[1745294959250,2.9367629,1586.4,1586.3,3.11127]
[1745294959755,1.8531629,1586.4,1586.3,3.11127]
[1745294959952,4.3404,1586.7,1586.6,1.26053]
[1745294960258,5.0516,1586.7,1586.6,1.26053]
[1745294961249,1.26054,1586.6,1586.4,7.4678]
[1745294961456,1.8438,1586.6,1586.5,1.26061]
[1745294961756,1.26051,1586.7,1586.5,1.26061]
[1745294961952,3.10431,1586.7,1586.5,3.11551]
[1745294962151,1.8438,1586.7,1586.6,1.26053]
[1745294962352,3.10429,1586.7,1586.5,3.11545]
[1745294962660,1.26053,1586.6,1586.5,1.8549]
[1745294962958,1.26061,1586.5,1586.4,5.52069]
[1745294963158,1.26061,1586.5,1586.4,4.25076145]
[1745294963458,2.99989,1586.6,1586.4,4.25076145]
[1745294963649,3.17569,1586.8,1586.4,7.45856145]
[1745294963650,0.0247,1586.8,1586.4,7.45856145]
[1745294963852,1.28512,1586.8,1586.6,1.26051]
[1745294964162,0.0247,1586.8,1586.7,1.26045]
[1745294965063,0.0247,1586.8,1586.7,7.58245]
[1745294965963,0.0247,1586.8,1586.7,8.0403]
[1745294966173,0.0247,1586.8,1586.7,1.7183]
[1745294966769,0.0247,1586.8,1586.7,2.97875]
[1745294967266,1.28507,1586.8,1586.7,14.4619]
[1745294967470,3.12677,1586.8,1586.7,14.4619]
[1745294968372,3.12677,1586.8,1586.7,8.1399]
[1745294968768,1.26061,1586.5,1586.4,6.322]
[1745294969068,1.26061,1586.5,1586.4,6.31276145]
[1745294969270,1.26077,1586.3,1586.2,9.2576]
[1745294969473,1.26077,1586.3,1586.2,7.31064]
[1745294970070,1.26077,1586.3,1586.2,6.0498]
[1745294970465,3.08935,1586.4,1586.2,7.31064]
[1745294970871,1.26077,1586.3,1586.2,6.0498]
[1745294971066,3.08937,1586.3,1586.2,6.0498]
[1745294971273,3.08937,1586.3,1586.2,7.31064]
[1745294971474,1.8286,1586.3,1586.2,7.31064]
[1745294972073,2.1688,1586.7,1586.5,1.26055]
[1745294972377,1.832,1586.7,1586.5,1.2606]
[1745294972578,3.09251,1586.7,1586.6,1.8077]
[1745294973280,3.09251,1586.7,1586.4,2.33774]
[1745294973281,1.26061,1586.5,1586.4,5.3411]
[1745294973471,1.26061,1586.5,1586.4,5.33186145]
[1745294973868,1.26061,1586.5,1586.4,7.13956145]
[1745294974277,1.26061,1586.5,1586.4,6.0717]
[1745294974476,3.15155,1586.5,1586.1,0.00946372]
[1745294974677,1.26077,1586.3,1586.2,1.26082]
[1745294974876,3.04625,1586.4,1586.2,3.07552]
[1745294975075,3.04625,1586.4,1586.2,9.39752]
[1745294975571,3.04625,1586.4,1586.2,8.1367]
[1745294975572,1.26077,1586.3,1586.2,8.1367]
[1745294975773,3.04627,1586.3,1586.2,6.322]
[1745294976078,4.11137,1586.3,1586.2,6.322]
[1745294976271,1.26084,1586.2,1586.1,0.00946372]
[1745294976472,3.04634,1586.2,1586.1,0.00946372]
[1745294977076,3.04634,1586.2,1586.1,1.82416372]
[1745294977680,3.04634,1586.2,1586.1,0.00946372]
[1745294978080,4.16694,1586.2,1586.1,0.00946372]
[1745294978770,1.26079,1586.3,1586.1,0.00946372]
[1745294979083,3.03439,1586.3,1586.2,1.26084]
[1745294979283,3.03439,1586.3,1586.1,1.79466372]
[1745294979580,3.03439,1586.3,1586.1,3.05552372]
[1745294979781,3.03439,1586.3,1586.2,1.26084]
[1745294979981,3.03439,1586.3,1586.2,3.04604]
[1745294980185,3.03439,1586.3,1586.2,6.322]
[1745294981177,1.26084,1586.2,1586.1,0.00946372]
[1745294981388,3.08164,1586.2,1586.1,0.00946372]
[1745294982385,1.8208,1586.2,1586.1,1.27038372]
[1745294982871,1.26076,1586.4,1586.2,1.26078]
[1745294983076,3.08156,1586.4,1586.2,1.26078]
[1745294983484,1.7334,1586.3,1586.2,1.26078]
[1745294984284,1.7334,1586.3,1586.2,7.58278]
[1745294984788,2.99417,1586.3,1586.2,6.322]
[1745294987689,1.7334,1586.3,1586.2,7.58284]
[1745294987877,2.99417,1586.3,1586.2,8.1326]
[1745294988284,2.99417,1586.3,1586.2,1.8106]
[1745294988583,2.99417,1586.3,1586.2,2.8794]
[1745294989588,1.26084,1586.2,1586.1,0.00946372]
[1745294989892,2.98654,1586.2,1586.1,0.00946372]
[1745294990396,1.26079,1586.3,1586.2,1.26083]
[1745294990694,1.26079,1586.3,1586.2,2.96414]
[1745294991092,1.26079,1586.3,1586.2,9.28614]
[1745294992294,2.98644,1586.4,1586.2,4.9111]
[1745294992496,2.98644,1586.4,1586.3,4.10617]
[1745294992698,2.98644,1586.4,1586.3,2.8454]
[1745294993093,1.26074,1586.4,1586.3,2.8454]
[1745294994298,3.01754,1586.4,1586.3,2.8454]
[1745294994792,1.26074,1586.4,1586.3,2.8454]
[1745294995894,3.01747,1586.5,1586.3,4.10617]
[1745294996292,1.6838,1586.4,1586.3,4.10617]
[1745294996493,1.6838,1586.4,1586.3,8.37017]
[1745294996697,3.2078,1586.6,1586.5,1.26061]
[1745294997000,4.88236145,1586.6,1586.5,1.26061]
[1745294997194,6.14289145,1586.6,1586.4,4.19232]
[1745294997394,4.88236145,1586.6,1586.5,1.26061]
[1745294997695,4.88236145,1586.6,1586.5,3.04311]
[1745294998991,1.1539,1586.7,1586.6,1.26053]
[1745294999193,1.1539,1586.7,1586.6,2.93063]
[1745294999392,2.41435,1586.7,1586.6,2.93063]
[1745294999595,4.12005,1586.7,1586.6,1.6701]
[1745294999900,1.26053,1586.6,1586.5,7.58261]
[1745295000095,2.96623,1586.6,1586.5,1.26061]
[1745295000294,2.96623,1586.6,1586.4,7.0793]
[1745295000499,1.7057,1586.5,1586.4,8.33999]
[1745295000698,1.7057,1586.5,1586.4,8.33075145]
[1745295000892,3.2078,1586.8,1586.4,15.22173145]
[1745295001097,7.24242,1587.0,1586.6,6.359]
[1745295001290,7.24242,1587.0,1586.9,1.26029]
[1745295001487,5.9822,1587.0,1586.8,1.26033]
[1745295001694,1.7057,1586.9,1586.8,2.93043]
[1745295001904,2.96599,1586.9,1586.8,2.93043]
[1745295002199,2.96599,1586.9,1586.8,1.6701]
[1745295002399,1.7057,1586.9,1586.8,2.93047]
[1745295002590,2.96599,1586.9,1586.8,1.6701]
[1745295003197,2.96599,1586.9,1586.8,2.93047]
[1745295003397,2.96599,1586.9,1586.8,1.6701]
[1745295004303,2.96599,1586.9,1586.8,2.93047]
[1745295004701,2.96599,1586.9,1586.8,1.6701]
[1745295005502,2.96599,1586.9,1586.7,6.6136]
[1745295005503,1.26037,1586.8,1586.7,5.3532]
[1745295005803,2.95317,1586.8,1586.7,1.26045]
[1745295006007,2.95317,1586.8,1586.7,1.8461]
[1745295008599,2.95317,1586.8,1586.7,3.10655]
[1745295009009,1.6928,1586.8,1586.7,3.10655]
[1745295009218,1.26036,1586.9,1586.7,8.1681]
[1745295009401,1.26036,1586.9,1586.8,1.7727]
[1745295009601,2.96596,1586.9,1586.8,3.03307]
[1745295009906,2.96596,1586.9,1586.8,1.7727]
[1745295010404,1.7056,1586.9,1586.6,4.2736]
[1745295010609,1.7056,1586.8,1586.6,4.2736]
[1745295010809,1.26038,1586.8,1586.7,3.03315]
[1745295012114,1.26038,1586.8,1586.7,1.7727]
[1745295012307,1.26038,1586.8,1586.7,3.03315]
[1745295012508,2.93983,1586.9,1586.8,1.26037]
[1745295013413,2.93979,1586.9,1586.8,1.26037]
[1745295013618,2.93979,1586.9,1586.8,2.35177]
[1745295013806,1.6795,1586.9,1586.8,1.26037]
[1745295014614,1.6795,1586.9,1586.8,3.10007]
[1745295015014,2.93979,1586.9,1586.8,3.10007]
[1745295015214,1.6795,1586.9,1586.8,3.10007]
[1745295016107,2.93979,1586.9,1586.8,3.10007]
[1745295016311,1.6795,1586.9,1586.8,3.10007]
[1745295016507,2.93979,1586.9,1586.8,1.26037]
[1745295016714,2.93982,1586.9,1586.8,1.26037]
[1745295016908,1.6795,1586.9,1586.8,1.26037]
[1745295017305,1.26037,1586.8,1586.7,4.25971]
[1745295017516,1.26064,1586.5,1586.4,1.26068]
[1745295017714,1.2606,1586.6,1586.3,1.8283]
[1745295018015,1.7427,1586.6,1586.5,1.26061]
[1745295018217,1.73346145,1586.6,1586.5,1.26061]
[1745295018404,2.40315,1586.7,1586.6,1.26053]
[1745295018814,2.40315,1586.7,1586.4,4.46847]
[1745295018815,1.26061,1586.5,1586.4,4.46847]
[1745295019021,1.26057,1586.6,1586.4,4.45923145]
[1745295019219,1.25133145,1586.6,1586.4,4.45923145]
[1745295019419,2.40317,1586.7,1586.6,1.26053]
[1745295020011,2.40317,1586.7,1586.5,5.30717]
[1745295020212,1.26053,1586.6,1586.5,4.0466]
[1745295020816,1.1427,1586.7,1586.5,5.30718]
[1745295021014,1.26053,1586.6,1586.5,4.0466]
[1745295021414,3.08913,1586.6,1586.5,4.0466]
[1745295021915,1.1427,1586.7,1586.5,4.0466]
[1745295022117,2.40315,1586.7,1586.6,3.03163]
[1745295022316,1.26045,1586.7,1586.6,1.7711]
[1745295022524,3.08905,1586.7,1586.6,3.03163]
[1745295023423,3.08905,1586.7,1586.6,1.7711]
[1745295023922,3.08905,1586.7,1586.6,3.03163]
[1745295024126,1.8286,1586.7,1586.6,3.03163]
[1745295024320,3.08905,1586.7,1586.6,3.03163]
[1745295024521,1.8286,1586.7,1586.6,3.03163]
[1745295024927,3.08905,1586.7,1586.6,3.03163]
[1745295025225,3.08905,1586.7,1586.6,1.7711]
[1745295025426,1.8286,1586.7,1586.6,3.03163]
[1745295026730,3.08905,1586.7,1586.6,3.03163]
[1745295027227,1.8286,1586.7,1586.6,3.03163]
[1745295027525,3.08905,1586.7,1586.6,3.03163]
[1745295027727,1.8286,1586.7,1586.6,3.03163]